[Event "Late-Titled-Tuesday-Blitz-March-26-2024"]
[Site "Chess.com"]
[Date "2024.03.26"]
[Round "5"]
[White "simaopdias"]
[Black "EternalNight8"]
[Result "0-1"]
[WhiteElo "2290"]
[BlackElo "2458"]
[TimeControl "180+1"]
[EndTime "14:58:37 PDT"]
[Termination "EternalNight8 won by resignation"]

1. e4 {[%clk 0:03:00.4]} 1... c5 {[%clk 0:02:55.2]} 2. Nf3 {[%clk 0:03:00.2]}
2... d6 {[%clk 0:02:55.6]} 3. d4 {[%clk 0:03:00.5]} 3... cxd4 {[%clk 0:02:56.5]}
4. Nxd4 {[%clk 0:03:00.6]} 4... Nf6 {[%clk 0:02:57.1]} 5. Nc3 {[%clk 0:03:01.1]}
5... Nc6 {[%clk 0:02:57.7]} 6. Be2 {[%clk 0:03:00.1]} 6... e5 {[%clk 0:02:57.2]}
7. Nb3 {[%clk 0:03:00.1]} 7... Be7 {[%clk 0:02:57.5]} 8. Be3 {[%clk 0:03:00]}
8... O-O {[%clk 0:02:57.1]} 9. O-O {[%clk 0:02:58.5]} 9... a5 {[%clk 0:02:54.3]}
10. a4 {[%clk 0:02:58.3]} 10... Nb4 {[%clk 0:02:53.4]} 11. Qd2 {[%clk
0:02:42.2]} 11... Be6 {[%clk 0:02:39.1]} 12. Rad1 {[%clk 0:02:41.3]} 12... d5
{[%clk 0:02:38.3]} 13. exd5 {[%clk 0:02:38]} 13... Nfxd5 {[%clk 0:02:33.7]} 14.
Nxd5 {[%clk 0:02:37.7]} 14... Nxd5 {[%clk 0:02:33.5]} 15. Bc5 {[%clk 0:02:33.6]}
15... b6 {[%clk 0:02:23.6]} 16. Bxe7 {[%clk 0:02:29.2]} 16... Qxe7 {[%clk
0:02:24.2]} 17. Bf3 {[%clk 0:02:02.5]} 17... Rad8 {[%clk 0:02:21.1]} 18. Bxd5
{[%clk 0:02:02]} 18... Bxd5 {[%clk 0:02:18.9]} 19. Qe3 {[%clk 0:01:59.6]} 19...
Qc7 {[%clk 0:02:14.8]} 20. Rd2 {[%clk 0:01:50.6]} 20... Qc6 {[%clk 0:01:57.5]}
21. f3 {[%clk 0:01:48.6]} 21... Bxb3 {[%clk 0:01:24.3]} 22. cxb3 {[%clk
0:01:44.4]} 22... Rxd2 {[%clk 0:01:13.2]} 23. Qxd2 {[%clk 0:01:45.3]} 23... Qc5+
{[%clk 0:01:13.8]} 24. Qf2 {[%clk 0:01:40.9]} 24... Rc8 {[%clk 0:00:59.1]} 25.
g3 {[%clk 0:01:36.8]} 25... f6 {[%clk 0:00:37.5]} 26. Kg2 {[%clk 0:01:35.6]}
26... Kf7 {[%clk 0:00:36]} 27. Qd2 {[%clk 0:01:31]} 27... Qc2 {[%clk 0:00:35.1]}
28. Rf2 {[%clk 0:01:30.8]} 28... Qxd2 {[%clk 0:00:31.2]} 29. Rxd2 {[%clk
0:01:31.7]} 29... Ke6 {[%clk 0:00:31.8]} 30. Kf2 {[%clk 0:01:31.7]} 30... Rc1
{[%clk 0:00:31.8]} 31. Ke3 {[%clk 0:01:23.1]} 31... f5 {[%clk 0:00:31.4]} 32.
Kd3 {[%clk 0:01:17.1]} 32... Rc8 {[%clk 0:00:26.9]} 33. Re2 {[%clk 0:01:05.6]}
33... Kd5 {[%clk 0:00:24.5]} 34. Re1 {[%clk 0:00:59]} 34... g5 {[%clk
0:00:17.8]} 35. Rh1 {[%clk 0:00:57.1]} 35... e4+ {[%clk 0:00:14.7]} 36. fxe4+
{[%clk 0:00:53.9]} 36... fxe4+ {[%clk 0:00:15.6]} 37. Kd2 {[%clk 0:00:49]} 37...
Kd4 {[%clk 0:00:15]} 38. Re1 {[%clk 0:00:43.7]} 38... Rf8 {[%clk 0:00:12.6]} 39.
Re2 {[%clk 0:00:40.9]} 39... Rf1 {[%clk 0:00:12.8]} 40. Rg2 {[%clk 0:00:41.2]}
40... e3+ {[%clk 0:00:11.4]} 41. Ke2 {[%clk 0:00:40.1]} 41... Rb1 {[%clk
0:00:11.5]} 42. Kf3 {[%clk 0:00:37]} 42... Rd1 {[%clk 0:00:11.5]} 43. Re2 {[%clk
0:00:35.3]} 43... Rf1+ {[%clk 0:00:11.7]} 44. Kg2 {[%clk 0:00:35.2]} 44... Rf8
{[%clk 0:00:11.9]} 45. Re1 {[%clk 0:00:22.6]} 45... Kd3 {[%clk 0:00:11.1]} 46.
Rd1+ {[%clk 0:00:21.7]} 46... Kc2 {[%clk 0:00:10.9]} 47. Rd6 {[%clk 0:00:20.9]}
47... e2 {[%clk 0:00:10.2]} 48. Re6 {[%clk 0:00:19]} 48... Kd2 {[%clk
0:00:10.6]} 49. Rd6+ {[%clk 0:00:19.2]} 49... Ke1 {[%clk 0:00:10.9]} 50. Kg1
{[%clk 0:00:13.4]} 50... Rf3 {[%clk 0:00:06.9]} 51. Kg2 {[%clk 0:00:12.8]} 51...
Rxb3 {[%clk 0:00:06.9]} 52. h4 {[%clk 0:00:10.1]} 52... gxh4 {[%clk 0:00:06.3]}
53. gxh4 {[%clk 0:00:10.3]} 53... Rxb2 {[%clk 0:00:06.7]} 54. h5 {[%clk
0:00:09.8]} 54... Rd2 {[%clk 0:00:06.6]} 55. Rxb6 {[%clk 0:00:08.7]} 55... Rd1
{[%clk 0:00:04]} 56. Rb5 {[%clk 0:00:07.6]} 56... Kd2 {[%clk 0:00:04.4]} 57.
Rb2+ {[%clk 0:00:06.2]} 57... Kd3 {[%clk 0:00:04.3]} 58. Rb3+ {[%clk 0:00:05.5]}
58... Kc4 {[%clk 0:00:04.7]} 0-1

[Event "Late-Titled-Tuesday-Blitz-March-26-2024"]
[Site "Chess.com"]
[Date "2024.03.26"]
[Round "5"]
[White "EgorYakovlev"]
[Black "Payyappat"]
[Result "0-1"]
[WhiteElo "2674"]
[BlackElo "2529"]
[TimeControl "180+1"]
[EndTime "14:58:38 PDT"]
[Termination "Payyappat won by resignation"]

1. e4 {[%clk 0:03:00.9]} 1... c6 {[%clk 0:02:58.7]} 2. d4 {[%clk 0:03:00.4]}
2... d5 {[%clk 0:02:59.6]} 3. Nc3 {[%clk 0:03:00.7]} 3... dxe4 {[%clk
0:02:59.1]} 4. Nxe4 {[%clk 0:03:01.6]} 4... Nf6 {[%clk 0:02:58.1]} 5. Nxf6+
{[%clk 0:03:01.7]} 5... exf6 {[%clk 0:02:59]} 6. c3 {[%clk 0:03:01.9]} 6... Bd6
{[%clk 0:02:59.5]} 7. Bd3 {[%clk 0:03:02]} 7... O-O {[%clk 0:02:58.9]} 8. Ne2
{[%clk 0:02:59.4]} 8... Be6 {[%clk 0:02:57]} 9. Qc2 {[%clk 0:02:59.1]} 9... h5
{[%clk 0:02:52.4]} 10. Nf4 {[%clk 0:02:50.4]} 10... Bxf4 {[%clk 0:02:43.7]} 11.
Bxf4 {[%clk 0:02:51.3]} 11... Nd7 {[%clk 0:02:42.7]} 12. O-O {[%clk 0:02:50.5]}
12... Nb6 {[%clk 0:02:42.2]} 13. a3 {[%clk 0:02:45]} 13... Re8 {[%clk
0:02:39.6]} 14. Rfe1 {[%clk 0:02:43.3]} 14... Qd7 {[%clk 0:02:34.6]} 15. Rad1
{[%clk 0:02:42.5]} 15... Nd5 {[%clk 0:02:30.4]} 16. Bd2 {[%clk 0:02:40.1]} 16...
Bg4 {[%clk 0:02:28.8]} 17. f3 {[%clk 0:02:39.9]} 17... Be6 {[%clk 0:02:16.4]}
18. c4 {[%clk 0:02:26.8]} 18... Nb6 {[%clk 0:02:15.4]} 19. Be3 {[%clk
0:02:27.2]} 19... Rad8 {[%clk 0:02:12]} 20. Bf2 {[%clk 0:02:17.4]} 20... Qc7
{[%clk 0:02:08.4]} 21. b4 {[%clk 0:02:08.2]} 21... Qf4 {[%clk 0:02:06]} 22. Re4
{[%clk 0:02:04.8]} 22... Qc7 {[%clk 0:01:53.6]} 23. Rde1 {[%clk 0:02:01.7]}
23... Re7 {[%clk 0:01:48.7]} 24. a4 {[%clk 0:01:52.8]} 24... Red7 {[%clk
0:01:43.8]} 25. a5 {[%clk 0:01:47.9]} 25... Nc8 {[%clk 0:01:43.3]} 26. Rh4
{[%clk 0:01:44.4]} 26... Ne7 {[%clk 0:01:18.8]} 27. Rxh5 {[%clk 0:01:37.6]}
27... f5 {[%clk 0:01:16.6]} 28. Rg5 {[%clk 0:01:20.3]} 28... g6 {[%clk 0:01:09]}
29. h4 {[%clk 0:01:09.1]} 29... Qf4 {[%clk 0:00:57.6]} 30. Qc1 {[%clk
0:00:51.4]} 30... Rxd4 {[%clk 0:00:52.9]} 31. Qxf4 {[%clk 0:00:37.8]} 31... Rxf4
{[%clk 0:00:53.8]} 32. Bf1 {[%clk 0:00:37.5]} 32... Kf8 {[%clk 0:00:45.1]} 33.
g3 {[%clk 0:00:35]} 33... Rxf3 {[%clk 0:00:42]} 34. Bxa7 {[%clk 0:00:33.4]}
34... f6 {[%clk 0:00:25.2]} 35. Bg2 {[%clk 0:00:21]} 35... Rc3 {[%clk
0:00:17.9]} 36. Rxe6 {[%clk 0:00:19.1]} 36... fxg5 {[%clk 0:00:18.8]} 37. Bc5
{[%clk 0:00:19]} 37... Rd7 {[%clk 0:00:18.8]} 38. hxg5 {[%clk 0:00:17.6]} 38...
Kf7 {[%clk 0:00:18.5]} 39. Rf6+ {[%clk 0:00:17]} 39... Kg7 {[%clk 0:00:18.8]}
40. Re6 {[%clk 0:00:15.2]} 40... Ng8 {[%clk 0:00:17.4]} 41. Re1 {[%clk
0:00:10.7]} 41... Rxc4 {[%clk 0:00:17.5]} 42. Bf1 {[%clk 0:00:10.7]} 42... Rc3
{[%clk 0:00:16.9]} 43. Kg2 {[%clk 0:00:10.4]} 43... Kf7 {[%clk 0:00:12.6]} 44.
a6 {[%clk 0:00:08.3]} 44... bxa6 {[%clk 0:00:12.2]} 45. Bxa6 {[%clk 0:00:09.2]}
45... Ne7 {[%clk 0:00:12.4]} 46. Re2 {[%clk 0:00:04.3]} 46... Nd5 {[%clk
0:00:09]} 47. Bc8 {[%clk 0:00:03.6]} 47... Rc7 {[%clk 0:00:08.8]} 48. Be6+
{[%clk 0:00:03.5]} 48... Kg7 {[%clk 0:00:06.8]} 49. Bd4+ {[%clk 0:00:03.5]}
49... Kf8 {[%clk 0:00:06.5]} 50. Bxc3 {[%clk 0:00:02.1]} 50... Nxc3 {[%clk
0:00:07.4]} 51. Rc2 {[%clk 0:00:02.2]} 51... Nb5 {[%clk 0:00:06.9]} 52. Bc4
{[%clk 0:00:02.9]} 52... Nd4 {[%clk 0:00:07]} 53. Rc3 {[%clk 0:00:03.3]} 53...
c5 {[%clk 0:00:06.6]} 54. bxc5 {[%clk 0:00:03.3]} 54... Rxc5 {[%clk 0:00:07.5]}
55. Rc1 {[%clk 0:00:02.8]} 55... Nb3 {[%clk 0:00:04.3]} 56. Rc2 {[%clk
0:00:02.4]} 56... Nd4 {[%clk 0:00:04.3]} 57. Rc1 {[%clk 0:00:02.1]} 57... Nc6
{[%clk 0:00:04.1]} 58. Rc2 {[%clk 0:00:01.8]} 58... Nb4 {[%clk 0:00:02.9]} 59.
Rc1 {[%clk 0:00:01.5]} 59... Nd5 {[%clk 0:00:03.1]} 60. Rc2 {[%clk 0:00:01.3]}
60... Ne3+ {[%clk 0:00:03.5]} 61. Kf3 {[%clk 0:00:01.4]} 61... Nxc2 {[%clk
0:00:04.4]} 62. Bd3 {[%clk 0:00:01.8]} 62... Ne1+ {[%clk 0:00:04.5]} 63. Ke2
{[%clk 0:00:01.9]} 63... Nxd3 {[%clk 0:00:05.4]} 64. Kxd3 {[%clk 0:00:02.8]}
64... Ke7 {[%clk 0:00:05.8]} 0-1

[Event "Late-Titled-Tuesday-Blitz-March-26-2024"]
[Site "Chess.com"]
[Date "2024.03.26"]
[Round "5"]
[White "FabianoCaruana"]
[Black "Beca95"]
[Result "0-1"]
[WhiteElo "3094"]
[BlackElo "2962"]
[TimeControl "180+1"]
[EndTime "14:58:41 PDT"]
[Termination "Beca95 won by resignation"]

1. e4 {[%clk 0:03:00.9]} 1... c5 {[%clk 0:02:58.3]} 2. Nf3 {[%clk 0:03:01]} 2...
d6 {[%clk 0:02:58.5]} 3. Bb5+ {[%clk 0:02:59.5]} 3... Nd7 {[%clk 0:02:58]} 4.
O-O {[%clk 0:02:59]} 4... a6 {[%clk 0:02:58]} 5. Bd3 {[%clk 0:02:59.5]} 5... e6
{[%clk 0:02:57.4]} 6. c4 {[%clk 0:02:53.1]} 6... Ne5 {[%clk 0:02:55.3]} 7. Be2
{[%clk 0:02:49.4]} 7... Ne7 {[%clk 0:02:54.9]} 8. d4 {[%clk 0:02:43.7]} 8...
Nxf3+ {[%clk 0:02:53.9]} 9. Bxf3 {[%clk 0:02:44.6]} 9... cxd4 {[%clk 0:02:53.8]}
10. Qxd4 {[%clk 0:02:45.5]} 10... Nc6 {[%clk 0:02:53.9]} 11. Qd2 {[%clk
0:02:42.7]} 11... Be7 {[%clk 0:02:51.6]} 12. b3 {[%clk 0:02:41.5]} 12... g5
{[%clk 0:02:48.9]} 13. Bb2 {[%clk 0:02:40.3]} 13... Rg8 {[%clk 0:02:48.4]} 14.
Be2 {[%clk 0:02:35.3]} 14... b6 {[%clk 0:02:47]} 15. Na3 {[%clk 0:02:29.2]}
15... Bb7 {[%clk 0:02:43.7]} 16. Nc2 {[%clk 0:02:28.8]} 16... Ne5 {[%clk
0:02:40.7]} 17. f3 {[%clk 0:02:21.8]} 17... Qc7 {[%clk 0:02:40.6]} 18. Kh1
{[%clk 0:02:19.2]} 18... h5 {[%clk 0:02:40.1]} 19. Rac1 {[%clk 0:02:14.8]} 19...
h4 {[%clk 0:02:39]} 20. h3 {[%clk 0:02:13.8]} 20... Ng6 {[%clk 0:02:38.7]} 21.
Ne3 {[%clk 0:02:10.2]} 21... Nf4 {[%clk 0:02:34.8]} 22. Rfd1 {[%clk 0:02:10.3]}
22... Rd8 {[%clk 0:01:59.7]} 23. Bf1 {[%clk 0:02:09.3]} 23... Rg6 {[%clk
0:01:53.6]} 24. b4 {[%clk 0:02:07.9]} 24... Kf8 {[%clk 0:01:46.4]} 25. Ng4
{[%clk 0:02:04.1]} 25... Kg8 {[%clk 0:01:38]} 26. Qc3 {[%clk 0:01:58.8]} 26...
f6 {[%clk 0:01:37.6]} 27. Qe1 {[%clk 0:01:51.2]} 27... Kh7 {[%clk 0:01:35.4]}
28. Qf2 {[%clk 0:01:49.1]} 28... e5 {[%clk 0:01:18.3]} 29. Ne3 {[%clk
0:01:46.2]} 29... Rc8 {[%clk 0:01:05.7]} 30. Nd5 {[%clk 0:01:33.6]} 30... Nxd5
{[%clk 0:00:58.5]} 31. cxd5 {[%clk 0:01:34.5]} 31... Qd8 {[%clk 0:00:56.7]} 32.
b5 {[%clk 0:01:23.9]} 32... a5 {[%clk 0:00:53.6]} 33. Rc6 {[%clk 0:01:21]} 33...
Bxc6 {[%clk 0:00:53.7]} 34. dxc6 {[%clk 0:01:20.7]} 34... Qc7 {[%clk 0:00:42.5]}
35. Bc4 {[%clk 0:01:18.7]} 35... Rf8 {[%clk 0:00:40.4]} 36. Be6 {[%clk
0:01:14.8]} 36... Rg7 {[%clk 0:00:39]} 37. Bc1 {[%clk 0:01:11.4]} 37... Bd8
{[%clk 0:00:37.2]} 38. Bf5+ {[%clk 0:01:06.1]} 38... Kh8 {[%clk 0:00:35.3]} 39.
Rd5 {[%clk 0:01:05.7]} 39... a4 {[%clk 0:00:28.9]} 40. Qc2 {[%clk 0:00:59.4]}
40... Qb8 {[%clk 0:00:28.6]} 41. Ba3 {[%clk 0:00:52]} 41... Bc7 {[%clk
0:00:27.4]} 42. Bb4 {[%clk 0:00:52.2]} 42... a3 {[%clk 0:00:26.7]} 43. Rd3
{[%clk 0:00:50.3]} 43... Rd8 {[%clk 0:00:25]} 44. Be6 {[%clk 0:00:48.2]} 44...
d5 {[%clk 0:00:24.8]} 45. Rxd5 {[%clk 0:00:37.2]} 45... Rxd5 {[%clk 0:00:24.7]}
46. exd5 {[%clk 0:00:37.4]} 46... Bd6 {[%clk 0:00:24.9]} 47. Bxd6 {[%clk
0:00:21.9]} 47... Qxd6 {[%clk 0:00:24.6]} 48. Qc4 {[%clk 0:00:18]} 48... Ra7
{[%clk 0:00:18.6]} 49. Bf5 {[%clk 0:00:14.4]} 49... Kg7 {[%clk 0:00:18.5]} 50.
Bc2 {[%clk 0:00:13.6]} 50... e4 {[%clk 0:00:14]} 51. Bxe4 {[%clk 0:00:11.5]}
51... Re7 {[%clk 0:00:13.9]} 52. Qc3 {[%clk 0:00:09.3]} 52... Kf7 {[%clk
0:00:13.6]} 53. Qc2 {[%clk 0:00:07.6]} 53... f5 {[%clk 0:00:13.5]} 54. Qd3
{[%clk 0:00:04.3]} 54... fxe4 {[%clk 0:00:13.5]} 55. fxe4 {[%clk 0:00:05.2]}
55... Kg7 {[%clk 0:00:13.5]} 56. Qd4+ {[%clk 0:00:04.3]} 56... Kg6 {[%clk
0:00:13.6]} 57. Qd3 {[%clk 0:00:04]} 57... Kh6 {[%clk 0:00:14]} 58. Qf3 {[%clk
0:00:03.8]} 58... Kg7 {[%clk 0:00:13.2]} 59. Qc3+ {[%clk 0:00:03.7]} 59... Kg8
{[%clk 0:00:13.7]} 60. Qd4 {[%clk 0:00:03.3]} 60... Qf4 {[%clk 0:00:12.3]} 61.
d6 {[%clk 0:00:02.4]} 61... Rxe4 {[%clk 0:00:12.5]} 62. Qd1 {[%clk 0:00:02.2]}
62... Qe5 {[%clk 0:00:11.9]} 63. d7 {[%clk 0:00:01.4]} 63... Re1+ {[%clk
0:00:11.9]} 64. Qxe1 {[%clk 0:00:02.2]} 64... Qxe1+ {[%clk 0:00:11.4]} 0-1

[Event "Late-Titled-Tuesday-Blitz-March-26-2024"]
[Site "Chess.com"]
[Date "2024.03.26"]
[Round "5"]
[White "stolencandy13"]
[Black "Zhigalko_Sergei"]
[Result "0-1"]
[WhiteElo "2659"]
[BlackElo "2894"]
[TimeControl "180+1"]
[EndTime "14:58:51 PDT"]
[Termination "Zhigalko_Sergei won by resignation"]

1. d4 {[%clk 0:03:00.9]} 1... Nf6 {[%clk 0:02:57.6]} 2. Bf4 {[%clk 0:03:00.6]}
2... d5 {[%clk 0:02:55.7]} 3. e3 {[%clk 0:03:00.9]} 3... c5 {[%clk 0:02:56.3]}
4. c3 {[%clk 0:03:01.2]} 4... Nc6 {[%clk 0:02:56.8]} 5. Nd2 {[%clk 0:03:01.5]}
5... Bf5 {[%clk 0:02:44.8]} 6. Qb3 {[%clk 0:03:01.2]} 6... Qd7 {[%clk
0:02:39.1]} 7. dxc5 {[%clk 0:02:48.6]} 7... e5 {[%clk 0:02:30.7]} 8. Bg3 {[%clk
0:02:48.6]} 8... Bxc5 {[%clk 0:02:30.4]} 9. Ngf3 {[%clk 0:02:48.5]} 9... Bd6
{[%clk 0:02:05.7]} 10. Bb5 {[%clk 0:02:48.2]} 10... Qe7 {[%clk 0:01:57.9]} 11.
Bh4 {[%clk 0:02:29.2]} 11... Be6 {[%clk 0:01:53.7]} 12. Qa4 {[%clk 0:02:23.9]}
12... O-O {[%clk 0:01:49.2]} 13. O-O {[%clk 0:02:14.5]} 13... Rfc8 {[%clk
0:01:45.6]} 14. e4 {[%clk 0:02:13.1]} 14... a6 {[%clk 0:01:41.8]} 15. Bd3 {[%clk
0:02:02.4]} 15... b5 {[%clk 0:01:37.7]} 16. Qd1 {[%clk 0:02:01.6]} 16... d4
{[%clk 0:00:34.6]} 17. cxd4 {[%clk 0:02:01.7]} 17... exd4 {[%clk 0:00:35]} 18.
Re1 {[%clk 0:01:57.7]} 18... Bg4 {[%clk 0:00:34.3]} 19. h3 {[%clk 0:01:42.1]}
19... Bh5 {[%clk 0:00:33.8]} 20. Qb1 {[%clk 0:01:17.6]} 20... Ne5 {[%clk
0:00:17.8]} 21. Nxe5 {[%clk 0:01:12]} 21... Bxe5 {[%clk 0:00:15.7]} 22. g3
{[%clk 0:01:01.4]} 22... Qb4 {[%clk 0:00:13.6]} 23. Nb3 {[%clk 0:00:51.5]} 23...
Nd7 {[%clk 0:00:11.8]} 24. f4 {[%clk 0:00:49.3]} 24... Bb8 {[%clk 0:00:06.9]}
25. e5 {[%clk 0:00:49.1]} 25... Nf8 {[%clk 0:00:06.6]} 26. Be4 {[%clk 0:00:48]}
26... Ra7 {[%clk 0:00:06.6]} 27. g4 {[%clk 0:00:45.6]} 27... Bg6 {[%clk
0:00:06.4]} 28. f5 {[%clk 0:00:46.2]} 28... Bxe5 {[%clk 0:00:07]} 29. fxg6
{[%clk 0:00:45.7]} 29... hxg6 {[%clk 0:00:07.9]} 30. Qd3 {[%clk 0:00:44.7]}
30... Rac7 {[%clk 0:00:05.5]} 31. Rac1 {[%clk 0:00:44.2]} 31... Qd6 {[%clk
0:00:05.1]} 32. Rxc7 {[%clk 0:00:43.2]} 32... Rxc7 {[%clk 0:00:06]} 33. Rc1
{[%clk 0:00:43]} 33... Ne6 {[%clk 0:00:06.5]} 34. Rxc7 {[%clk 0:00:42.2]} 34...
Qxc7 {[%clk 0:00:07.4]} 35. Bf2 {[%clk 0:00:39.1]} 35... Nf4 {[%clk 0:00:06]}
36. Qf3 {[%clk 0:00:37.1]} 36... Qd6 {[%clk 0:00:05.5]} 37. Bd3 {[%clk 0:00:33]}
37... Qe6 {[%clk 0:00:01.6]} 38. Bf1 {[%clk 0:00:28.6]} 38... Qd6 {[%clk
0:00:01.9]} 39. Qe4 {[%clk 0:00:27.6]} 39... g5 {[%clk 0:00:02.1]} 40. Nc1
{[%clk 0:00:26.2]} 40... g6 {[%clk 0:00:02]} 41. Nd3 {[%clk 0:00:26.5]} 41...
Nxd3 {[%clk 0:00:02.4]} 42. Bxd3 {[%clk 0:00:27.4]} 42... Kg7 {[%clk 0:00:02.5]}
43. a4 {[%clk 0:00:26.3]} 43... bxa4 {[%clk 0:00:02.1]} 44. Bc4 {[%clk
0:00:26.5]} 44... Bf6 {[%clk 0:00:02.3]} 45. Qd5 {[%clk 0:00:26.6]} 45... Qe7
{[%clk 0:00:02.3]} 46. Kg2 {[%clk 0:00:24.9]} 46... d3 {[%clk 0:00:02]} 47. Bxd3
{[%clk 0:00:24.4]} 47... Bxb2 {[%clk 0:00:02.5]} 48. Bd4+ {[%clk 0:00:24.8]}
48... Bxd4 {[%clk 0:00:02.8]} 49. Qxd4+ {[%clk 0:00:25.7]} 49... Qf6 {[%clk
0:00:02.8]} 50. Qxf6+ {[%clk 0:00:25.8]} 50... Kxf6 {[%clk 0:00:03.7]} 51. Bxa6
{[%clk 0:00:26.2]} 51... a3 {[%clk 0:00:04.4]} 52. Bc4 {[%clk 0:00:26.1]} 52...
Ke7 {[%clk 0:00:04.7]} 53. Kf3 {[%clk 0:00:26.3]} 53... f5 {[%clk 0:00:05.4]}
54. Ba2 {[%clk 0:00:20.7]} 54... Kd6 {[%clk 0:00:05.8]} 55. Bb1 {[%clk
0:00:20.7]} 55... Ke5 {[%clk 0:00:05.4]} 56. Ke3 {[%clk 0:00:19.7]} 56... Kd5
{[%clk 0:00:04.6]} 57. Ba2+ {[%clk 0:00:16.8]} 57... Kc5 {[%clk 0:00:05.1]} 58.
Bf7 {[%clk 0:00:16.3]} 58... Kb4 {[%clk 0:00:04.6]} 59. Kd3 {[%clk 0:00:16.3]}
59... f4 {[%clk 0:00:04.7]} 60. Ke4 {[%clk 0:00:15.7]} 60... Kc3 {[%clk
0:00:04.7]} 61. h4 {[%clk 0:00:15.5]} 61... gxh4 {[%clk 0:00:05.6]} 62. Kxf4
{[%clk 0:00:15.9]} 62... g5+ {[%clk 0:00:06.5]} 63. Kf3 {[%clk 0:00:14.8]} 63...
Kb2 {[%clk 0:00:06.9]} 64. Ke4 {[%clk 0:00:11]} 64... a2 {[%clk 0:00:06.9]} 65.
Bxa2 {[%clk 0:00:11.7]} 65... Kxa2 {[%clk 0:00:07.8]} 66. Kf5 {[%clk 0:00:12.2]}
66... h3 {[%clk 0:00:08.3]} 67. Kxg5 {[%clk 0:00:13.1]} 67... h2 {[%clk
0:00:09.2]} 68. Kf6 {[%clk 0:00:14]} 68... h1=Q {[%clk 0:00:10.1]} 69. g5 {[%clk
0:00:14.9]} 69... Qf3+ {[%clk 0:00:09.6]} 70. Ke6 {[%clk 0:00:15.2]} 70... Qg4+
{[%clk 0:00:09.7]} 71. Kf6 {[%clk 0:00:15.7]} 71... Qf4+ {[%clk 0:00:10.2]} 72.
Kg6 {[%clk 0:00:16.2]} 72... Kb3 {[%clk 0:00:10.4]} 73. Kh5 {[%clk 0:00:16.6]}
73... Kc4 {[%clk 0:00:09.4]} 74. g6 {[%clk 0:00:17.5]} 74... Qf6 {[%clk
0:00:09.4]} 75. Kh6 {[%clk 0:00:18]} 75... Qh8+ {[%clk 0:00:09.4]} 76. Kg5
{[%clk 0:00:18.3]} 76... Qg7 {[%clk 0:00:10.1]} 77. Kf5 {[%clk 0:00:18.8]} 77...
Kd5 {[%clk 0:00:10.6]} 0-1

[Event "Late-Titled-Tuesday-Blitz-March-26-2024"]
[Site "Chess.com"]
[Date "2024.03.26"]
[Round "5"]
[White "esrosenberg"]
[Black "BilicVladimir"]
[Result "0-1"]
[WhiteElo "2488"]
[BlackElo "2650"]
[TimeControl "180+1"]
[EndTime "14:58:53 PDT"]
[Termination "BilicVladimir won on time"]

1. d4 {[%clk 0:03:00.9]} 1... d5 {[%clk 0:02:59.5]} 2. c4 {[%clk 0:03:01.1]}
2... c6 {[%clk 0:03:00.3]} 3. Nc3 {[%clk 0:02:58.6]} 3... Nf6 {[%clk 0:03:00.4]}
4. e3 {[%clk 0:02:58.2]} 4... a6 {[%clk 0:03:00.8]} 5. Nf3 {[%clk 0:02:57]} 5...
b5 {[%clk 0:03:00.9]} 6. b3 {[%clk 0:02:56.7]} 6... Bg4 {[%clk 0:02:59.8]} 7. h3
{[%clk 0:02:56.7]} 7... Bxf3 {[%clk 0:03:00]} 8. gxf3 {[%clk 0:02:57.6]} 8... e6
{[%clk 0:03:00.6]} 9. Bd2 {[%clk 0:02:41.1]} 9... Nbd7 {[%clk 0:03:00.5]} 10.
cxd5 {[%clk 0:02:38.1]} 10... cxd5 {[%clk 0:02:59.7]} 11. Bd3 {[%clk 0:02:38.7]}
11... Bd6 {[%clk 0:02:54.7]} 12. f4 {[%clk 0:02:38.5]} 12... g6 {[%clk
0:02:52.8]} 13. Ne2 {[%clk 0:02:37.4]} 13... O-O {[%clk 0:02:51.7]} 14. Ng1
{[%clk 0:02:38]} 14... Qe7 {[%clk 0:02:50]} 15. Nf3 {[%clk 0:02:37.9]} 15... Bb4
{[%clk 0:02:49.9]} 16. Ne5 {[%clk 0:02:36.7]} 16... Rfc8 {[%clk 0:02:46.5]} 17.
O-O {[%clk 0:02:32.4]} 17... Bxd2 {[%clk 0:02:44.5]} 18. Qxd2 {[%clk 0:02:32.2]}
18... Nxe5 {[%clk 0:02:44.5]} 19. fxe5 {[%clk 0:02:32]} 19... Nh5 {[%clk
0:02:43.8]} 20. Kh2 {[%clk 0:02:23.1]} 20... Qh4 {[%clk 0:02:40.6]} 21. Rg1
{[%clk 0:02:20.9]} 21... Rc7 {[%clk 0:02:31]} 22. Rg4 {[%clk 0:02:20.6]} 22...
Qe7 {[%clk 0:02:29.9]} 23. Rag1 {[%clk 0:02:17.6]} 23... Rac8 {[%clk 0:02:18]}
24. R1g2 {[%clk 0:02:16]} 24... Kh8 {[%clk 0:02:14.8]} 25. Rg5 {[%clk 0:01:53]}
25... Ng7 {[%clk 0:02:10.5]} 26. R5g4 {[%clk 0:01:33.2]} 26... Nf5 {[%clk
0:02:08.5]} 27. Bxf5 {[%clk 0:01:06]} 27... exf5 {[%clk 0:02:06.3]} 28. R4g3
{[%clk 0:01:06.7]} 28... Rc2 {[%clk 0:02:04.8]} 29. Qa5 {[%clk 0:01:07.4]} 29...
Qe6 {[%clk 0:01:56.4]} 30. a4 {[%clk 0:00:51.1]} 30... bxa4 {[%clk 0:01:53.7]}
31. bxa4 {[%clk 0:00:42.9]} 31... R2c4 {[%clk 0:01:46.6]} 32. f4 {[%clk
0:00:33.3]} 32... Qc6 {[%clk 0:01:43.8]} 33. Ra2 {[%clk 0:00:30.2]} 33... Rc3
{[%clk 0:01:35]} 34. Qb4 {[%clk 0:00:22.4]} 34... Rc1 {[%clk 0:01:22.8]} 35. Qe7
{[%clk 0:00:19.4]} 35... Kg8 {[%clk 0:01:20.7]} 36. h4 {[%clk 0:00:13.6]} 36...
Re8 {[%clk 0:01:06.3]} 37. Qf6 {[%clk 0:00:11.7]} 37... Qxf6 {[%clk 0:00:56.7]}
38. exf6 {[%clk 0:00:12.6]} 38... Re6 {[%clk 0:00:56.7]} 39. Rb2 {[%clk
0:00:10.9]} 39... Rxf6 {[%clk 0:00:56.3]} 40. Rb8+ {[%clk 0:00:10.5]} 40... Kg7
{[%clk 0:00:56.5]} 41. h5 {[%clk 0:00:10.6]} 41... Rfc6 {[%clk 0:00:51.4]} 42.
Rd8 {[%clk 0:00:10.7]} 42... R6c2+ {[%clk 0:00:49.1]} 43. Rg2 {[%clk 0:00:11.3]}
43... Rxg2+ {[%clk 0:00:48.2]} 44. Kxg2 {[%clk 0:00:12.2]} 44... Rc4 {[%clk
0:00:45.6]} 45. a5 {[%clk 0:00:10.8]} 45... Ra4 {[%clk 0:00:29.2]} 46. Rxd5
{[%clk 0:00:11.1]} 46... Kh6 {[%clk 0:00:27.5]} 47. hxg6 {[%clk 0:00:10.9]}
47... fxg6 {[%clk 0:00:27.7]} 48. Kf3 {[%clk 0:00:08.2]} 48... Kh5 {[%clk
0:00:26.9]} 49. Rd7 {[%clk 0:00:08.2]} 49... h6 {[%clk 0:00:26.6]} 50. d5 {[%clk
0:00:07.5]} 50... Rxa5 {[%clk 0:00:26.4]} 51. d6 {[%clk 0:00:08.4]} 51... Rd5
{[%clk 0:00:26.1]} 52. e4 {[%clk 0:00:09]} 52... Rd3+ {[%clk 0:00:25.7]} 53. Ke2
{[%clk 0:00:07.6]} 53... fxe4 {[%clk 0:00:26.1]} 54. Rd8 {[%clk 0:00:05.2]}
54... a5 {[%clk 0:00:24.6]} 55. d7 {[%clk 0:00:05.1]} 55... a4 {[%clk
0:00:24.8]} 56. f5 {[%clk 0:00:04.5]} 56... gxf5 {[%clk 0:00:22.3]} 57. Rf8
{[%clk 0:00:05.2]} 57... Rxd7 {[%clk 0:00:21.2]} 58. Rxf5+ {[%clk 0:00:05.9]}
58... Kg4 {[%clk 0:00:20.7]} 59. Ra5 {[%clk 0:00:05.9]} 59... Rd4 {[%clk
0:00:17.9]} 60. Ke3 {[%clk 0:00:05.3]} 60... Rb4 {[%clk 0:00:18]} 61. Ra8 {[%clk
0:00:04.9]} 61... h5 {[%clk 0:00:18.3]} 62. Rg8+ {[%clk 0:00:05.4]} 62... Kh3
{[%clk 0:00:18.5]} 63. Kf4 {[%clk 0:00:04.9]} 63... h4 {[%clk 0:00:18.4]} 64.
Rg1 {[%clk 0:00:04]} 64... Kh2 {[%clk 0:00:18.3]} 65. Rg4 {[%clk 0:00:03.3]}
65... h3 {[%clk 0:00:18]} 66. Rg8 {[%clk 0:00:02.7]} 66... Kh1 {[%clk
0:00:17.7]} 67. Kg3 {[%clk 0:00:01.9]} 67... h2 {[%clk 0:00:17.1]} 68. Kh3
{[%clk 0:00:02]} 68... Rb3+ {[%clk 0:00:17.2]} 69. Kh4 {[%clk 0:00:01.9]} 69...
a3 {[%clk 0:00:17.1]} 0-1